[Event "*** Qualifier 3: Titled Tuesday 3|2 Blitz"]
[Site "Chess.com"]
[Date "2017.04.18"]
[Round "4"]
[White "popov_m"]
[Black "XDPS"]
[Result "0-1"]
[WhiteElo "2404"]
[BlackElo "2542"]
[TimeControl "180+2"]
[EndTime "13:52:39 PDT"]
[Termination "XDPS won by resignation"]

1. c4 {[%clk 0:02:56.8]} 1... e6 {[%clk 0:03:00.6]} 2. g3 {[%clk 0:02:57.9]}
2... d5 {[%clk 0:03:01.4]} 3. Bg2 {[%clk 0:02:59.5]} 3... Nf6 {[%clk 0:03:02.7]}
4. Nf3 {[%clk 0:03:01.1]} 4... Be7 {[%clk 0:03:04.3]} 5. O-O {[%clk 0:03:02.5]}
5... O-O {[%clk 0:03:05.9]} 6. Qc2 {[%clk 0:03:04.1]} 6... b6 {[%clk 0:03:06.7]}
7. b3 {[%clk 0:03:03.9]} 7... Bb7 {[%clk 0:03:07.2]} 8. Bb2 {[%clk 0:03:04.4]}
8... Nbd7 {[%clk 0:03:08.8]} 9. d4 {[%clk 0:03:04.9]} 9... Ne4 {[%clk
0:03:08.7]} 10. Nbd2 {[%clk 0:03:05.4]} 10... f5 {[%clk 0:03:09.5]} 11. Ne5
{[%clk 0:02:55.4]} 11... Bd6 {[%clk 0:03:04.5]} 12. Ndf3 {[%clk 0:02:54.4]}
12... Ndf6 {[%clk 0:02:59.8]} 13. Rac1 {[%clk 0:02:47.8]} 13... Qe8 {[%clk
0:02:59.4]} 14. Nd3 {[%clk 0:02:01.2]} 14... Qh5 {[%clk 0:02:55.1]} 15. c5
{[%clk 0:02:01.7]} 15... bxc5 {[%clk 0:02:43.8]} 16. dxc5 {[%clk 0:02:01.1]}
16... Be7 {[%clk 0:02:44.8]} 17. Nf4 {[%clk 0:01:46.8]} 17... Qh6 {[%clk
0:02:37.7]} 18. Nxe6 {[%clk 0:01:46.6]} 18... Rfc8 {[%clk 0:02:32.1]} 19. c6
{[%clk 0:01:33.8]} 19... Ba6 {[%clk 0:02:32.8]} 20. Ned4 {[%clk 0:01:31]} 20...
Qh5 {[%clk 0:02:28.6]} 21. b4 {[%clk 0:01:23.6]} 21... Rcb8 {[%clk 0:02:15]} 22.
a3 {[%clk 0:01:08.9]} 22... Bd6 {[%clk 0:02:08.4]} 23. Qb3 {[%clk 0:00:45.5]}
23... Bc4 {[%clk 0:01:56.7]} 24. Rxc4 {[%clk 0:00:44.9]} 24... dxc4 {[%clk
0:01:58]} 25. Qxc4+ {[%clk 0:00:46.6]} 25... Kh8 {[%clk 0:01:59.7]} 26. Nb5
{[%clk 0:00:40.2]} 26... Ng4 {[%clk 0:01:56.2]} 27. Nxd6 {[%clk 0:00:22.1]}
27... cxd6 {[%clk 0:01:55.4]} 28. h3 {[%clk 0:00:21.2]} 28... Ngf6 {[%clk
0:01:50.6]} 29. Nd4 {[%clk 0:00:14.9]} 29... Rc8 {[%clk 0:01:45.4]} 30. Ne6
{[%clk 0:00:15.5]} 30... Qf7 {[%clk 0:01:39.3]} 31. Qa2 {[%clk 0:00:05.2]} 31...
Re8 {[%clk 0:01:37.1]} 32. Rc1 {[%clk 0:00:04]} 32... Qxe6 {[%clk 0:01:29.4]}
33. Qa1 {[%clk 0:00:05.3]} 33... Rac8 {[%clk 0:01:26.7]} 34. Bd4 {[%clk
0:00:06.4]} 34... a6 {[%clk 0:01:26.8]} 35. a4 {[%clk 0:00:07.1]} 35... Qd5
{[%clk 0:01:24.6]} 36. c7 {[%clk 0:00:05.8]} 36... Qf7 {[%clk 0:01:15.4]} 37. b5
{[%clk 0:00:06.6]} 37... axb5 {[%clk 0:01:16.5]} 38. axb5 {[%clk 0:00:08.5]}
38... Rxc7 {[%clk 0:01:17.3]} 39. Rb1 {[%clk 0:00:08.9]} 39... Rb7 {[%clk
0:01:15.8]} 40. b6 {[%clk 0:00:10.2]} 40... d5 {[%clk 0:01:16.7]} 41. Qa6 {[%clk
0:00:10.7]} 41... Reb8 {[%clk 0:01:17.2]} 42. e3 {[%clk 0:00:11.6]} 42... h6
{[%clk 0:01:18.2]} 43. Rc1 {[%clk 0:00:12.4]} 43... Qe6 {[%clk 0:01:17.7]} 44.
Qb5 {[%clk 0:00:12.3]} 44... Nd6 {[%clk 0:01:16.6]} 45. Qc6 {[%clk 0:00:06.6]}
45... Nfe4 {[%clk 0:01:17.1]} 46. Bxe4 {[%clk 0:00:04.7]} 46... fxe4 {[%clk
0:01:17.7]} 47. Rc5 {[%clk 0:00:06]} 47... Rxb6 {[%clk 0:01:17.8]} 48. Qxd5
{[%clk 0:00:06.3]} 48... Qxd5 {[%clk 0:01:18.4]} 49. Rxd5 {[%clk 0:00:07.9]}
49... Rc6 {[%clk 0:01:19.9]} 50. Re5 {[%clk 0:00:08.2]} 50... Re8 {[%clk
0:01:19.9]} 51. Ra5 {[%clk 0:00:08.9]} 51... Rc7 {[%clk 0:01:15.8]} 52. g4
{[%clk 0:00:09.9]} 52... Kg8 {[%clk 0:01:15.2]} 53. Kh2 {[%clk 0:00:11.1]} 53...
Rf7 {[%clk 0:01:16.4]} 54. Kg3 {[%clk 0:00:12.5]} 54... Nc4 {[%clk 0:01:16.8]}
55. Rc5 {[%clk 0:00:12.5]} 55... Nd2 {[%clk 0:01:18.2]} 56. h4 {[%clk
0:00:12.3]} 56... Nb3 {[%clk 0:01:18.9]} 57. Rc4 {[%clk 0:00:13]} 57... Nxd4
{[%clk 0:01:19.3]} 58. Rxd4 {[%clk 0:00:14.9]} 58... Ref8 {[%clk 0:01:19.6]} 59.
Rxe4 {[%clk 0:00:15.7]} 59... Rf3+ {[%clk 0:01:21]} 0-1

[Event "*** Qualifier 3: Titled Tuesday 3|2 Blitz"]
[Site "Chess.com"]
[Date "2017.04.18"]
[Round "4"]
[White "Spartakus1975"]
[Black "Grebeniuk-S"]
[Result "1-0"]
[WhiteElo "2572"]
[BlackElo "2403"]
[TimeControl "180+2"]
[EndTime "13:52:43 PDT"]
[Termination "Spartakus1975 won on time"]

1. d4 {[%clk 0:02:56.7]} 1... Nf6 {[%clk 0:03:00]} 2. Bf4 {[%clk 0:02:57.3]}
2... g6 {[%clk 0:02:57.9]} 3. e3 {[%clk 0:02:56.9]} 3... Bg7 {[%clk 0:02:58.7]}
4. h3 {[%clk 0:02:56.3]} 4... O-O {[%clk 0:02:59.7]} 5. c3 {[%clk 0:02:56.8]}
5... d6 {[%clk 0:03:01.6]} 6. Nf3 {[%clk 0:02:56.4]} 6... Nc6 {[%clk 0:03:03.2]}
7. Be2 {[%clk 0:02:57.3]} 7... Nd7 {[%clk 0:03:04.2]} 8. O-O {[%clk 0:02:58.2]}
8... e5 {[%clk 0:03:05.7]} 9. Bh2 {[%clk 0:02:59.4]} 9... Kh8 {[%clk 0:02:58.7]}
10. a4 {[%clk 0:02:59.4]} 10... f5 {[%clk 0:02:59.7]} 11. Na3 {[%clk 0:02:59.6]}
11... f4 {[%clk 0:02:44]} 12. dxe5 {[%clk 0:02:26.3]} 12... dxe5 {[%clk
0:02:21]} 13. exf4 {[%clk 0:02:26.7]} 13... exf4 {[%clk 0:02:18.6]} 14. Nb5
{[%clk 0:02:25.8]} 14... a6 {[%clk 0:02:11.7]} 15. Nbd4 {[%clk 0:02:26.6]} 15...
Nxd4 {[%clk 0:01:59.9]} 16. cxd4 {[%clk 0:02:20.9]} 16... Nb6 {[%clk 0:01:51.4]}
17. Ne5 {[%clk 0:02:19.5]} 17... c5 {[%clk 0:01:31.8]} 18. dxc5 {[%clk
0:01:56.4]} 18... Bxe5 {[%clk 0:01:14.2]} 19. Qxd8 {[%clk 0:01:56.2]} 19... Rxd8
{[%clk 0:01:16.1]} 20. cxb6 {[%clk 0:01:57.7]} 20... Bxb2 {[%clk 0:00:54.5]} 21.
Rad1 {[%clk 0:01:54.1]} 21... Bd7 {[%clk 0:00:51.8]} 22. Bxf4 {[%clk 0:01:35.1]}
22... Bxa4 {[%clk 0:00:46.1]} 23. Rb1 {[%clk 0:01:20]} 23... Bd4 {[%clk
0:00:21.2]} 24. Bf3 {[%clk 0:01:15.9]} 24... Bb5 {[%clk 0:00:22.1]} 25. Rfd1
{[%clk 0:01:13.7]} 25... Bxb6 {[%clk 0:00:20.9]} 26. Be5+ {[%clk 0:01:11.6]}
26... Kg8 {[%clk 0:00:21.7]} 27. Bd5+ {[%clk 0:01:11.7]} 27... Kf8 {[%clk
0:00:22]} 28. Rb3 {[%clk 0:01:11.2]} 28... Rxd5 {[%clk 0:00:12]} 29. Rxd5 {[%clk
0:01:10.9]} 29... Rc8 {[%clk 0:00:13.2]} 30. Rf3+ {[%clk 0:01:02.5]} 30... Ke7
{[%clk 0:00:14.2]} 31. Bf6+ {[%clk 0:01:02]} 31... Ke6 {[%clk 0:00:15]} 32. Re5+
{[%clk 0:01:02.4]} 32... Kd6 {[%clk 0:00:16.5]} 33. Re7 {[%clk 0:00:58.9]} 33...
Rc1+ {[%clk 0:00:17]} 34. Kh2 {[%clk 0:00:59.2]} 34... Kd5 {[%clk 0:00:16]} 35.
Rxb7 {[%clk 0:00:55.5]} 35... Bc7+ {[%clk 0:00:17.3]} 36. g3 {[%clk 0:00:52.4]}
36... Bd6 {[%clk 0:00:15.3]} 37. Rxh7 {[%clk 0:00:48.7]} 37... Rc2 {[%clk
0:00:14.4]} 38. h4 {[%clk 0:00:43.1]} 38... Bc5 {[%clk 0:00:15.4]} 39. Kg2
{[%clk 0:00:37.7]} 39... Bc6 {[%clk 0:00:16.6]} 40. Rc7 {[%clk 0:00:35]} 40...
Kd6 {[%clk 0:00:15]} 41. Rxc6+ {[%clk 0:00:36]} 41... Kxc6 {[%clk 0:00:16.9]}
42. g4 {[%clk 0:00:37.5]} 42... Rc4 {[%clk 0:00:17.6]} 43. Kh3 {[%clk
0:00:35.6]} 43... Kd7 {[%clk 0:00:16.5]} 44. h5 {[%clk 0:00:34.6]} 44... gxh5
{[%clk 0:00:16.9]} 45. gxh5 {[%clk 0:00:36.2]} 45... Ke6 {[%clk 0:00:15.7]} 46.
h6 {[%clk 0:00:36]} 46... Bd4 {[%clk 0:00:16.7]} 47. h7 {[%clk 0:00:33.8]} 1-0

[Event "*** Qualifier 3: Titled Tuesday 3|2 Blitz"]
[Site "Chess.com"]
[Date "2017.04.18"]
[Round "4"]
[White "silverback96"]
[Black "Journey_to_GrandMaster_YT"]
[Result "1-0"]
[WhiteElo "2054"]
[BlackElo "2288"]
[TimeControl "180+2"]
[EndTime "13:52:44 PDT"]
[Termination "silverback96 won by resignation"]

1. d4 {[%clk 0:03:01.4]} 1... d6 {[%clk 0:03:01]} 2. c4 {[%clk 0:03:03.3]} 2...
e5 {[%clk 0:03:01.7]} 3. d5 {[%clk 0:03:03.5]} 3... f5 {[%clk 0:03:01.5]} 4. e4
{[%clk 0:03:04.8]} 4... fxe4 {[%clk 0:03:02.2]} 5. Nc3 {[%clk 0:03:06]} 5... Nf6
{[%clk 0:03:02.2]} 6. Nge2 {[%clk 0:03:07.6]} 6... Bf5 {[%clk 0:03:02.4]} 7. Ng3
{[%clk 0:03:09.1]} 7... Bg6 {[%clk 0:03:03.2]} 8. h4 {[%clk 0:03:10.4]} 8... h5
{[%clk 0:02:58.9]} 9. Be2 {[%clk 0:02:53]} 9... Be7 {[%clk 0:02:56.8]} 10. Bg5
{[%clk 0:02:54]} 10... Nbd7 {[%clk 0:02:54.5]} 11. Qd2 {[%clk 0:02:33.5]} 11...
a5 {[%clk 0:02:52.1]} 12. O-O-O {[%clk 0:02:34.2]} 12... Nc5 {[%clk 0:02:52.9]}
13. Qe3 {[%clk 0:02:19.7]} 13... Qd7 {[%clk 0:02:21.4]} 14. Bxf6 {[%clk
0:02:17.5]} 14... gxf6 {[%clk 0:02:14.6]} 15. Ngxe4 {[%clk 0:02:19.1]} 15...
Nxe4 {[%clk 0:02:04.3]} 16. Nxe4 {[%clk 0:02:21]} 16... O-O-O {[%clk 0:02:02.6]}
17. Rh3 {[%clk 0:02:06]} 17... b6 {[%clk 0:01:57.1]} 18. Kb1 {[%clk 0:01:54.1]}
18... Rdg8 {[%clk 0:01:56.6]} 19. Ka1 {[%clk 0:01:54.5]} 19... Bf5 {[%clk
0:01:54.4]} 20. Rg3 {[%clk 0:01:52.1]} 20... Bxe4 {[%clk 0:01:51]} 21. Qxe4
{[%clk 0:01:51.6]} 21... Rxg3 {[%clk 0:01:50.1]} 22. fxg3 {[%clk 0:01:53.5]}
22... Rg8 {[%clk 0:01:45]} 23. c5 {[%clk 0:01:54.8]} 23... dxc5 {[%clk
0:01:43.2]} 24. Ba6+ {[%clk 0:01:55.1]} 24... Kb8 {[%clk 0:01:44]} 25. d6 {[%clk
0:01:54.4]} 25... c6 {[%clk 0:01:44.7]} 26. Qh7 {[%clk 0:01:52.8]} 26... Rd8
{[%clk 0:01:41.2]} 27. Qxh5 {[%clk 0:01:27.2]} 27... Bxd6 {[%clk 0:01:38.5]} 28.
Qg6 {[%clk 0:01:27]} 28... Ka7 {[%clk 0:01:33.8]} 29. Bc4 {[%clk 0:01:26.9]}
29... b5 {[%clk 0:01:32.7]} 30. Bf7 {[%clk 0:01:26.5]} 30... Qe7 {[%clk
0:01:33]} 31. h5 {[%clk 0:01:26.1]} 31... Bc7 {[%clk 0:01:33.6]} 32. Rb1 {[%clk
0:01:26.1]} 32... Rd7 {[%clk 0:01:32.4]} 33. Be8 {[%clk 0:01:24.4]} 33... Rd8
{[%clk 0:01:33.3]} 34. Bf7 {[%clk 0:01:25.4]} 34... Rf8 {[%clk 0:01:34.4]} 35.
Bb3 {[%clk 0:01:24.1]} 35... Qe8 {[%clk 0:01:34.3]} 36. Qe4 {[%clk 0:01:22.6]}
36... c4 {[%clk 0:01:34.4]} 37. Bd1 {[%clk 0:01:23]} 37... f5 {[%clk 0:01:33.8]}
38. Qe3+ {[%clk 0:01:19.1]} 38... Bb6 {[%clk 0:01:34.3]} 39. Qh6 {[%clk
0:01:20.5]} 39... Rh8 {[%clk 0:01:31.7]} 40. Qg7+ {[%clk 0:01:21.5]} 40... Ka6
{[%clk 0:01:31.4]} 41. g4 {[%clk 0:01:08.8]} 41... f4 {[%clk 0:01:24.1]} 42. Bf3
{[%clk 0:01:08.9]} 42... e4 {[%clk 0:01:24.6]} 43. Bxe4 {[%clk 0:01:09.6]} 43...
Rg8 {[%clk 0:01:23.2]} 44. Qh7 {[%clk 0:01:10]} 44... Rxg4 {[%clk 0:01:23.5]}
45. Qf5 {[%clk 0:00:56.5]} 45... Rg7 {[%clk 0:01:11.6]} 46. h6 {[%clk
0:00:53.9]} 46... Re7 {[%clk 0:01:10.8]} 47. h7 {[%clk 0:00:46.1]} 47... Qh8
{[%clk 0:01:07.5]} 48. a4 {[%clk 0:00:40.5]} 48... b4 {[%clk 0:01:01.2]} 49.
Bxc6 {[%clk 0:00:33.3]} 49... Re5 {[%clk 0:00:59.9]} 50. Qd7 {[%clk 0:00:32.2]}
1-0

[Event "*** Qualifier 3: Titled Tuesday 3|2 Blitz"]
[Site "Chess.com"]
[Date "2017.04.18"]
[Round "4"]
[White "GamayevOleg"]
[Black "Dr-Bassem"]
[Result "1-0"]
[WhiteElo "2409"]
[BlackElo "2594"]
[TimeControl "180+2"]
[EndTime "13:52:49 PDT"]
[Termination "GamayevOleg won by checkmate"]

1. d3 {[%clk 0:03:01.9]} 1... e5 {[%clk 0:02:59.6]} 2. e4 {[%clk 0:03:03.8]}
2... Nc6 {[%clk 0:02:50.3]} 3. Nf3 {[%clk 0:03:05.7]} 3... d5 {[%clk 0:02:50.3]}
4. Be2 {[%clk 0:03:07.6]} 4... Nf6 {[%clk 0:02:50]} 5. Nbd2 {[%clk 0:03:08.3]}
5... Bc5 {[%clk 0:02:50.8]} 6. O-O {[%clk 0:03:09]} 6... O-O {[%clk 0:02:51.3]}
7. c3 {[%clk 0:03:10.5]} 7... a5 {[%clk 0:02:51.8]} 8. a4 {[%clk 0:03:12]} 8...
Re8 {[%clk 0:02:52.3]} 9. h3 {[%clk 0:03:12.4]} 9... h6 {[%clk 0:02:53.3]} 10.
Re1 {[%clk 0:03:11.8]} 10... Be6 {[%clk 0:02:37.7]} 11. Bf1 {[%clk 0:03:08.6]}
11... d4 {[%clk 0:02:37.2]} 12. c4 {[%clk 0:03:02.2]} 12... Bb4 {[%clk
0:02:34.8]} 13. g3 {[%clk 0:03:01.6]} 13... Nd7 {[%clk 0:02:34.6]} 14. Bg2
{[%clk 0:02:57]} 14... Nc5 {[%clk 0:02:35.1]} 15. Qe2 {[%clk 0:02:58.3]} 15...
Ra6 {[%clk 0:02:29.1]} 16. Rf1 {[%clk 0:02:56.8]} 16... Rb6 {[%clk 0:02:28.9]}
17. Ne1 {[%clk 0:02:55.9]} 17... Bxd2 {[%clk 0:02:29.3]} 18. Bxd2 {[%clk
0:02:54.5]} 18... Rxb2 {[%clk 0:02:30.2]} 19. Qd1 {[%clk 0:02:50.5]} 19... Nb3
{[%clk 0:02:22.4]} 20. Bc1 {[%clk 0:02:51.8]} 20... Nxc1 {[%clk 0:02:13]} 21.
Qxc1 {[%clk 0:02:53.7]} 21... Rb3 {[%clk 0:02:05.5]} 22. f4 {[%clk 0:02:47.8]}
22... exf4 {[%clk 0:02:03.9]} 23. gxf4 {[%clk 0:02:47.3]} 23... Rc3 {[%clk
0:01:45.7]} 24. Qd2 {[%clk 0:02:39.4]} 24... f5 {[%clk 0:01:44.7]} 25. e5 {[%clk
0:02:33.3]} 25... Nb4 {[%clk 0:01:43.7]} 26. Rf3 {[%clk 0:02:25.8]} 26... Bd7
{[%clk 0:01:36]} 27. Rg3 {[%clk 0:02:26.3]} 27... Bc6 {[%clk 0:01:36.8]} 28.
Bxc6 {[%clk 0:02:27.2]} 28... bxc6 {[%clk 0:01:38.3]} 29. Qg2 {[%clk 0:02:16.3]}
29... Qd7 {[%clk 0:01:38.1]} 30. Rd1 {[%clk 0:02:13.6]} 30... Kh7 {[%clk
0:01:37.7]} 31. Nf3 {[%clk 0:02:08.1]} 31... c5 {[%clk 0:01:36.5]} 32. Nh4
{[%clk 0:02:07]} 32... Re7 {[%clk 0:01:28.7]} 33. Qf3 {[%clk 0:01:51.7]} 33...
Nc2 {[%clk 0:00:44.2]} 34. Kh2 {[%clk 0:01:28.4]} 34... Ne3 {[%clk 0:00:41]} 35.
Rdg1 {[%clk 0:01:29.1]} 35... Rxd3 {[%clk 0:00:39.8]} 36. Ng6 {[%clk 0:01:15.3]}
36... Re8 {[%clk 0:00:30.4]} 37. Qb7 {[%clk 0:00:54.9]} 37... Rd2+ {[%clk
0:00:24.4]} 38. Kh1 {[%clk 0:00:55.6]} 38... Qxa4 {[%clk 0:00:14.3]} 39. Qxc7
{[%clk 0:00:52.8]} 39... Rg8 {[%clk 0:00:09.4]} 40. Nf8+ {[%clk 0:00:50.6]}
40... Kh8 {[%clk 0:00:10.5]} 41. Rxg7 {[%clk 0:00:51.2]} 41... Rh2+ {[%clk
0:00:07.6]} 42. Kxh2 {[%clk 0:00:52.6]} 42... Qc2+ {[%clk 0:00:08.5]} 43. R1g2
{[%clk 0:00:39.8]} 43... Qxg2+ {[%clk 0:00:02.9]} 44. Rxg2 {[%clk 0:00:40.8]}
44... Rxg2+ {[%clk 0:00:04.5]} 45. Kh1 {[%clk 0:00:42.4]} 45... d3 {[%clk
0:00:05.8]} 46. Qh7# {[%clk 0:00:42.8]} 1-0

[Event "*** Qualifier 3: Titled Tuesday 3|2 Blitz"]
[Site "Chess.com"]
[Date "2017.04.18"]
[Round "4"]
[White "iturrizaga"]
[Black "Alex_Molchanov"]
[Result "1-0"]
[WhiteElo "2641"]
[BlackElo "2444"]
[TimeControl "180+2"]
[EndTime "13:52:57 PDT"]
[Termination "iturrizaga won by resignation"]

1. Nf3 {[%clk 0:03:02]} 1... Nf6 {[%clk 0:02:59.7]} 2. c4 {[%clk 0:03:03.9]}
2... c5 {[%clk 0:02:58.9]} 3. g3 {[%clk 0:03:05.8]} 3... g6 {[%clk 0:02:59.7]}
4. Bg2 {[%clk 0:03:07.5]} 4... Bg7 {[%clk 0:03:01.4]} 5. O-O {[%clk 0:03:09.4]}
5... O-O {[%clk 0:03:02.7]} 6. d4 {[%clk 0:03:11]} 6... cxd4 {[%clk 0:02:56.6]}
7. Nxd4 {[%clk 0:03:12.9]} 7... Nc6 {[%clk 0:02:49.1]} 8. Nc3 {[%clk 0:03:13.8]}
8... Nxd4 {[%clk 0:02:31]} 9. Qxd4 {[%clk 0:03:15.7]} 9... d6 {[%clk 0:02:30.8]}
10. Qd3 {[%clk 0:03:12.6]} 10... Bf5 {[%clk 0:02:29.1]} 11. e4 {[%clk
0:03:06.3]} 11... Be6 {[%clk 0:02:25.9]} 12. b3 {[%clk 0:03:06.5]} 12... Qd7
{[%clk 0:02:18.5]} 13. Rd1 {[%clk 0:03:03.9]} 13... Bh3 {[%clk 0:02:05.7]} 14.
Bb2 {[%clk 0:03:01.8]} 14... Bxg2 {[%clk 0:02:01.1]} 15. Kxg2 {[%clk 0:03:03.7]}
15... Qc6 {[%clk 0:01:46]} 16. f3 {[%clk 0:03:04.3]} 16... Nd7 {[%clk
0:01:43.4]} 17. Nd5 {[%clk 0:03:05.4]} 17... Rfe8 {[%clk 0:01:40.5]} 18. Bxg7
{[%clk 0:03:06.1]} 18... Kxg7 {[%clk 0:01:42.4]} 19. Qc3+ {[%clk 0:03:05.9]}
19... Kg8 {[%clk 0:01:38]} 20. Rac1 {[%clk 0:03:07.5]} 20... Rac8 {[%clk
0:01:36.8]} 21. h4 {[%clk 0:03:04.3]} 21... h5 {[%clk 0:01:08.2]} 22. Qe3 {[%clk
0:03:04.8]} 22... Nc5 {[%clk 0:00:54.3]} 23. Qg5 {[%clk 0:02:59]} 23... Qd7
{[%clk 0:00:51.3]} 24. e5 {[%clk 0:02:56.5]} 24... dxe5 {[%clk 0:00:47.3]} 25.
b4 {[%clk 0:02:47.8]} 25... Ne6 {[%clk 0:00:43.9]} 26. Qxe5 {[%clk 0:02:48.6]}
26... Qa4 {[%clk 0:00:44.3]} 27. Rd2 {[%clk 0:02:48.7]} 27... a5 {[%clk
0:00:32.3]} 28. f4 {[%clk 0:02:12.9]} 28... axb4 {[%clk 0:00:28.3]} 29. f5
{[%clk 0:02:14.4]} 29... gxf5 {[%clk 0:00:21.5]} 30. Qxf5 {[%clk 0:02:16.3]}
30... Ng7 {[%clk 0:00:22.7]} 31. Qe4 {[%clk 0:02:04.5]} 31... Qc6 {[%clk
0:00:23.1]} 32. Rf1 {[%clk 0:02:00.6]} 32... f5 {[%clk 0:00:13]} 33. Qf3 {[%clk
0:01:59.7]} 33... Kf8 {[%clk 0:00:11.8]} 34. Rd4 {[%clk 0:01:43.6]} 34... e6
{[%clk 0:00:13.1]} 35. Nxb4 {[%clk 0:01:40.9]} 35... Qxf3+ {[%clk 0:00:14.4]}
36. Kxf3 {[%clk 0:01:41.3]} 36... Red8 {[%clk 0:00:15.9]} 37. Rxd8+ {[%clk
0:01:40.2]} 37... Rxd8 {[%clk 0:00:16.7]} 38. Ke3 {[%clk 0:01:41.9]} 38... Ke7
{[%clk 0:00:17]} 39. Nd3 {[%clk 0:01:42.1]} 39... Kf6 {[%clk 0:00:16.2]} 40. Rb1
{[%clk 0:01:43.1]} 40... Rd7 {[%clk 0:00:17.5]} 41. Rb6 {[%clk 0:01:43.9]} 41...
Rc7 {[%clk 0:00:17.5]} 42. c5 {[%clk 0:01:44.6]} 42... f4+ {[%clk 0:00:16]} 43.
Kxf4 {[%clk 0:01:43.7]} 43... Nf5 {[%clk 0:00:17.4]} 44. a4 {[%clk 0:01:42.2]}
44... Ne7 {[%clk 0:00:17.9]} 45. Ke4 {[%clk 0:01:41.4]} 45... Nd5 {[%clk
0:00:18.6]} 46. Rb3 {[%clk 0:01:42.3]} 46... Ne7 {[%clk 0:00:15.2]} 47. Ne5
{[%clk 0:01:41.8]} 47... Nf5 {[%clk 0:00:12.8]} 48. a5 {[%clk 0:01:37.7]} 48...
Ke7 {[%clk 0:00:11.9]} 49. Rb5 {[%clk 0:01:38.6]} 49... Nxg3+ {[%clk 0:00:11]}
50. Kf4 {[%clk 0:01:39.9]} 50... Nf5 {[%clk 0:00:12.6]} 51. Nd3 {[%clk
0:01:32.4]} 51... Kf6 {[%clk 0:00:11.1]} 52. Rb6 {[%clk 0:01:28.6]} 52... Nxh4
{[%clk 0:00:10.9]} 53. c6 {[%clk 0:01:22.6]} 53... bxc6 {[%clk 0:00:12.2]} 54.
a6 {[%clk 0:01:23.7]} 54... Ra7 {[%clk 0:00:13.7]} 55. Nc5 {[%clk 0:01:24.6]}
55... Ng6+ {[%clk 0:00:14.8]} 56. Ke4 {[%clk 0:01:24.4]} 56... Ne7 {[%clk
0:00:12.6]} 57. Rb7 {[%clk 0:01:25.6]} 57... Ra8 {[%clk 0:00:14]} 58. Nd7+
{[%clk 0:01:26.6]} 58... Kf7 {[%clk 0:00:15.1]} 59. a7 {[%clk 0:01:23.8]} 59...
h4 {[%clk 0:00:14.8]} 60. Nb6 {[%clk 0:01:24.7]} 60... Rh8 {[%clk 0:00:08.3]}
61. Rb8 {[%clk 0:01:23.8]} 1-0

[Event "*** Qualifier 3: Titled Tuesday 3|2 Blitz"]
[Site "Chess.com"]
[Date "2017.04.18"]
[Round "4"]
[White "Yaacovn"]
[Black "Izoria123"]
[Result "0-1"]
[WhiteElo "2593"]
[BlackElo "2651"]
[TimeControl "180+2"]
[EndTime "13:53:05 PDT"]
[Termination "Izoria123 won by resignation"]

1. d4 {[%clk 0:01:13]} 1... Nf6 {[%clk 0:03:00]} 2. Nf3 {[%clk 0:01:14.4]} 2...
g6 {[%clk 0:03:00.1]} 3. c4 {[%clk 0:01:13.9]} 3... Bg7 {[%clk 0:03:01]} 4. Nc3
{[%clk 0:01:15.6]} 4... O-O {[%clk 0:02:59.4]} 5. g3 {[%clk 0:01:17]} 5... c5
{[%clk 0:02:59.9]} 6. Bg2 {[%clk 0:01:18.1]} 6... cxd4 {[%clk 0:03:00.8]} 7.
Nxd4 {[%clk 0:01:20]} 7... Nc6 {[%clk 0:03:01.8]} 8. O-O {[%clk 0:01:19.5]} 8...
Qa5 {[%clk 0:03:02.8]} 9. Nc2 {[%clk 0:01:20.1]} 9... d6 {[%clk 0:03:02.9]} 10.
Bd2 {[%clk 0:01:20.8]} 10... Qh5 {[%clk 0:02:51.4]} 11. Ne3 {[%clk 0:01:21.5]}
11... Bh3 {[%clk 0:02:50.4]} 12. Re1 {[%clk 0:01:22.1]} 12... Bxg2 {[%clk
0:02:48.9]} 13. Kxg2 {[%clk 0:01:24]} 13... Rac8 {[%clk 0:02:49.3]} 14. b3
{[%clk 0:01:24.2]} 14... Ng4 {[%clk 0:02:43.4]} 15. Nxg4 {[%clk 0:01:22.6]}
15... Qxg4 {[%clk 0:02:45.3]} 16. Rc1 {[%clk 0:01:20.7]} 16... Rfd8 {[%clk
0:02:42.8]} 17. Be3 {[%clk 0:01:16.5]} 17... e6 {[%clk 0:02:30.9]} 18. h3 {[%clk
0:01:14.4]} 18... Qf5 {[%clk 0:02:30.3]} 19. Qd3 {[%clk 0:00:52.6]} 19... Qxd3
{[%clk 0:02:19.1]} 20. exd3 {[%clk 0:00:54.5]} 20... Nb4 {[%clk 0:02:18.8]} 21.
Red1 {[%clk 0:00:39.4]} 21... Bxc3 {[%clk 0:02:09.2]} 22. Rxc3 {[%clk
0:00:41.3]} 22... Nxa2 {[%clk 0:02:10.6]} 23. Rc2 {[%clk 0:00:42.5]} 23... Nb4
{[%clk 0:02:12.2]} 24. Rcc1 {[%clk 0:00:43.2]} 24... a6 {[%clk 0:02:05.9]} 25.
Ra1 {[%clk 0:00:43.7]} 25... Nc2 {[%clk 0:01:59.8]} 26. Ra5 {[%clk 0:00:41.8]}
26... Nxe3+ {[%clk 0:01:58.8]} 27. fxe3 {[%clk 0:00:43.7]} 27... Rc6 {[%clk
0:01:58.9]} 28. Kf3 {[%clk 0:00:44.1]} 28... Rb6 {[%clk 0:01:58.5]} 29. Rb1
{[%clk 0:00:44.6]} 29... Kf8 {[%clk 0:01:58.9]} 30. Ke2 {[%clk 0:00:43.6]} 30...
h5 {[%clk 0:01:56.3]} 31. d4 {[%clk 0:00:43.9]} 31... Ke7 {[%clk 0:01:57.2]} 32.
Kd3 {[%clk 0:00:45]} 32... Rc8 {[%clk 0:01:55]} 33. b4 {[%clk 0:00:45.3]} 33...
Rbc6 {[%clk 0:01:55.1]} 34. Rc1 {[%clk 0:00:44.7]} 34... R6c7 {[%clk 0:01:48.7]}
35. Ra2 {[%clk 0:00:43.6]} 35... f5 {[%clk 0:01:48]} 36. Rac2 {[%clk 0:00:41.8]}
36... e5 {[%clk 0:01:48.7]} 37. c5 {[%clk 0:00:42.1]} 37... Ke6 {[%clk
0:01:47.5]} 38. Kc4 {[%clk 0:00:42.4]} 38... b6 {[%clk 0:01:39.5]} 39. d5+
{[%clk 0:00:42.8]} 39... Kf6 {[%clk 0:01:38.5]} 40. c6 {[%clk 0:00:44.7]} 40...
Ra8 {[%clk 0:01:38.4]} 41. Ra1 {[%clk 0:00:45.6]} 41... Kg5 {[%clk 0:01:31.4]}
42. Kd3 {[%clk 0:00:45.8]} 42... Kf6 {[%clk 0:01:32.1]} 43. Rca2 {[%clk
0:00:45.3]} 43... Rca7 {[%clk 0:01:32.7]} 44. Ke2 {[%clk 0:00:46.2]} 44... e4
{[%clk 0:01:32.9]} 45. Rd1 {[%clk 0:00:39.7]} 45... Ke5 {[%clk 0:01:33.3]} 46.
Rc2 {[%clk 0:00:39.2]} 46... b5 {[%clk 0:01:32]} 47. Ra2 {[%clk 0:00:37.4]}
47... a5 {[%clk 0:01:32.2]} 48. bxa5 {[%clk 0:00:36.3]} 48... Rxa5 {[%clk
0:01:34.1]} 49. Rxa5 {[%clk 0:00:37.9]} 49... Rxa5 {[%clk 0:01:36]} 50. Rc1
{[%clk 0:00:38.4]} 50... Ra8 {[%clk 0:01:36.7]} 51. Rd1 {[%clk 0:00:39.5]} 51...
b4 {[%clk 0:01:37.7]} 52. Rd4 {[%clk 0:00:38.3]} 52... b3 {[%clk 0:01:32.5]} 53.
Kd2 {[%clk 0:00:39.4]} 53... h4 {[%clk 0:01:28.6]} 54. gxh4 {[%clk 0:00:32.6]}
54... b2 {[%clk 0:01:28.4]} 55. Kc2 {[%clk 0:00:30.5]} 55... Rb8 {[%clk
0:01:29.6]} 56. Rd1 {[%clk 0:00:30.4]} 56... f4 {[%clk 0:01:24.9]} 57. exf4+
{[%clk 0:00:30.7]} 57... Kxf4 {[%clk 0:01:26.8]} 58. Rg1 {[%clk 0:00:26.8]}
58... e3 {[%clk 0:01:26.1]} 59. Kb1 {[%clk 0:00:23.1]} 59... e2 {[%clk
0:01:26.4]} 60. c7 {[%clk 0:00:14.5]} 60... Rc8 {[%clk 0:01:26.9]} 0-1